bitfinex/quotes_BTCUSD_20241023
["timestamp","ask_amount","ask_price","bid_price","bid_amount"]
[1729669849483,0.95525319,66815.0,66814.0,0.00076917]
[1729669849743,0.86601792,66815.0,66814.0,0.00076917]
[1729669849966,0.80150034,66815.0,66814.0,0.00076917]
[1729669850402,0.3755745,66815.0,66814.0,0.00076917]
[1729669850670,0.37459683,66815.0,66814.0,0.00076917]
[1729669850890,0.42023614,66815.0,66814.0,0.00076917]
[1729669851151,0.54035896,66815.0,66814.0,0.00076917]
[1729669851323,0.54036087,66815.0,66814.0,0.00076917]
[1729669851542,0.65195112,66815.0,66814.0,0.00076917]
[1729669852017,0.68932002,66815.0,66814.0,0.00076917]
[1729669852241,0.67495263,66815.0,66814.0,0.00076917]
[1729669852884,0.82391178,66815.0,66814.0,0.00076917]
[1729669853093,0.82555978,66815.0,66814.0,0.00076917]
[1729669853950,0.119738,66812.0,66810.0,0.00290797]
[1729669854165,0.70159587,66812.0,66810.0,0.00290797]
[1729669854408,0.70161015,66812.0,66810.0,0.00290797]
[1729669854828,0.70161505,66812.0,66810.0,0.00290797]
[1729669855238,0.44757653,66812.0,66810.0,0.00290797]
[1729669855445,0.70161627,66812.0,66810.0,0.00290797]
[1729669855895,0.61234561,66812.0,66810.0,0.00290797]
[1729669856093,0.70161627,66812.0,66810.0,0.00290797]
[1729669856522,0.70161797,66812.0,66810.0,0.00290797]
[1729669856743,0.61234561,66812.0,66810.0,0.00290797]
[1729669856979,0.70161797,66812.0,66810.0,0.00290797]
[1729669858350,0.8049192,66812.0,66810.0,0.00290797]
[1729669858561,0.70162048,66812.0,66810.0,0.00290797]
[1729669859877,0.5145374,66812.0,66810.0,0.00290797]
[1729669860100,0.70161417,66812.0,66810.0,0.00290797]
[1729669860555,0.83416392,66812.0,66810.0,0.00290797]
[1729669860759,0.70162051,66812.0,66810.0,0.00290797]
[1729669861021,0.29969665,66812.0,66811.0,0.32728526]
[1729669861227,0.29969665,66812.0,66811.0,0.49106716]
[1729669861228,0.04566043,66812.0,66811.0,0.49106716]
[1729669861474,0.01396043,66812.0,66811.0,0.44702526]
[1729669862811,0.01396043,66812.0,66811.0,0.44902526]
[1729669863866,0.001648,66815.0,66814.0,0.19861511]
[1729669864115,0.01558521,66815.0,66814.0,0.19861511]
[1729669868341,0.01556442,66815.0,66814.0,0.19861511]
[1729669870990,0.01556442,66815.0,66814.0,0.07888011]
[1729669871660,0.01555968,66815.0,66814.0,0.19861511]
[1729669872101,0.01555968,66815.0,66814.0,0.56254195]
[1729669872310,0.001648,66815.0,66814.0,0.56954895]
[1729669874335,0.001648,66815.0,66814.0,0.74733532]
[1729669874551,0.001648,66815.0,66814.0,0.57524061]
[1729669874769,0.001648,66815.0,66814.0,0.74533532]
[1729669875003,0.001648,66815.0,66814.0,0.45347426]
[1729669876501,0.001648,66815.0,66814.0,0.43847426]
[1729669879446,0.001648,66815.0,66814.0,0.44047426]
[1729669880712,0.001648,66815.0,66814.0,0.43847426]
[1729669885033,0.01557841,66815.0,66814.0,0.43847426]
[1729669885869,0.01557841,66815.0,66814.0,0.54780305]
[1729669886069,0.01558301,66815.0,66814.0,0.54780305]
[1729669886906,0.001648,66815.0,66814.0,0.54780305]
[1729669887320,0.01559045,66815.0,66814.0,0.54780305]
[1729669887739,0.01559045,66815.0,66814.0,0.54980305]
[1729669888606,0.01559045,66815.0,66814.0,0.55062705]
[1729669889484,0.01561074,66815.0,66814.0,0.55062705]
[1729669890401,0.001648,66815.0,66814.0,0.55062705]
[1729669891081,0.001648,66815.0,66814.0,0.54862705]
[1729669891291,0.01561287,66815.0,66814.0,0.54862705]
[1729669891759,0.01561287,66815.0,66814.0,0.43929826]
[1729669892213,0.02236481,66815.0,66814.0,0.43929826]
[1729669892426,0.02236523,66815.0,66814.0,0.43929826]
[1729669892639,0.02236523,66815.0,66814.0,0.28469826]
[1729669892873,0.54290679,66825.0,66821.0,0.00018011]
[1729669893082,0.119721,66822.0,66821.0,0.00018011]
[1729669893302,0.04566682,66822.0,66821.0,0.00018011]
[1729669893756,0.04566682,66822.0,66821.0,0.01267062]
[1729669894216,0.16538782,66822.0,66821.0,0.01267062]
[1729669894892,0.04566682,66822.0,66821.0,0.01267062]
[1729669895124,0.04566682,66822.0,66821.0,0.00018011]
[1729669897537,0.03170275,66822.0,66821.0,0.00018011]
[1729669897772,0.04566682,66822.0,66821.0,0.00018011]
[1729669898074,0.03170275,66822.0,66821.0,0.11990211]
[1729669898509,0.03170275,66822.0,66821.0,0.18028322]
[1729669899196,0.02234251,66822.0,66821.0,0.18028322]
[1729669899893,0.001648,66825.0,66822.0,0.002]
[1729669900107,0.001648,66825.0,66824.0,0.119717]
[1729669900330,0.02399414,66825.0,66824.0,0.119717]
[1729669900558,0.03335348,66825.0,66824.0,0.14817924]
[1729669901026,0.02399414,66825.0,66824.0,0.119717]
[1729669901253,0.03335346,66825.0,66822.0,0.23944]
[1729669901471,0.02234614,66824.0,66823.0,0.119719]
[1729669904160,0.03630674,66824.0,66823.0,0.119719]
[1729669904381,0.03630674,66824.0,66823.0,0.36234275]
[1729669904612,0.03630674,66824.0,66823.0,0.3593501]
[1729669904821,0.0139606,66824.0,66823.0,0.3693501]
[1729669907283,0.001648,66825.0,66824.0,0.15724325]
[1729669907498,0.001648,66825.0,66824.0,0.38227139]
[1729669908420,0.001648,66825.0,66824.0,0.65807139]
[1729669909331,0.001648,66825.0,66824.0,0.70476786]
[1729669911247,0.001648,66825.0,66824.0,0.67976786]
[1729669912279,0.001648,66825.0,66824.0,0.75927486]
[1729669912495,0.001648,66825.0,66824.0,0.63307139]
[1729669912972,0.001648,66825.0,66824.0,0.63107139]
[1729669913246,0.001648,66825.0,66824.0,0.35727139]
[1729669913762,0.001648,66826.0,66825.0,0.13224125]
[1729669914008,0.001648,66826.0,66825.0,0.34158151]
[1729669914829,0.001648,66826.0,66825.0,0.44158151]
[1729669916976,0.001648,66826.0,66825.0,0.44358151]
[1729669917727,0.001648,66826.0,66825.0,0.61367622]
[1729669918954,0.001648,66826.0,66825.0,0.61567622]
[1729669919872,0.001648,66826.0,66825.0,0.61367622]
[1729669920083,0.001648,66827.0,66826.0,0.01252625]
[1729669920308,0.001648,66827.0,66826.0,0.36669024]
[1729669920973,0.001648,66827.0,66826.0,0.36869024]
[1729669921238,0.001648,66827.0,66826.0,0.36669024]
[1729669921676,0.001648,66827.0,66826.0,0.36869024]
[1729669922112,0.001648,66827.0,66826.0,0.36669024]
[1729669922774,0.001648,66827.0,66826.0,0.36869024]
[1729669923210,0.001648,66827.0,66826.0,0.36669024]
[1729669923642,0.001648,66827.0,66826.0,0.37250622]
[1729669924330,0.001648,66827.0,66826.0,0.47090622]
[1729669924548,0.001648,66828.0,66827.0,0.01452625]
[1729669924760,0.001648,66828.0,66827.0,0.45926639]
[1729669925261,0.001648,66828.0,66827.0,0.50401536]
[1729669925788,0.001648,66828.0,66827.0,0.45926639]
[1729669928328,0.001648,66828.0,66827.0,0.45726639]
[1729669929475,0.002,66832.0,66831.0,0.13223025]
[1729669929706,0.002,66832.0,66831.0,0.44157051]
[1729669934348,0.01593638,66832.0,66831.0,0.44157051]
[1729669934588,0.002,66832.0,66831.0,0.44157051]
[1729669934802,0.002,66832.0,66831.0,0.44139509]
[1729669935438,0.002,66832.0,66831.0,0.44339509]
[1729669935656,0.002,66832.0,66831.0,0.43139509]
[1729669935893,0.34381579,66839.0,66835.0,0.119696]
[1729669936107,0.03623781,66838.0,66835.0,0.23445099]
[1729669936309,0.13113781,66837.0,66836.0,0.119695]
[1729669938478,0.13115095,66837.0,66836.0,0.119695]
[1729669938715,0.13115095,66837.0,66827.0,0.00235083]
[1729669938716,0.0827,66836.0,66827.0,0.00235083]
[1729669938941,0.119713,66826.0,66825.0,0.000824]
[1729669939188,0.34472198,66826.0,66825.0,0.000824]
[1729669939408,0.38189997,66826.0,66825.0,0.000824]
[1729669939632,0.38096749,66826.0,66825.0,0.000824]
[1729669939877,0.38095441,66826.0,66825.0,0.000824]
[1729669940288,0.26216066,66826.0,66825.0,0.000824]
[1729669940570,0.35866218,66826.0,66825.0,0.000824]
[1729669942283,0.23894918,66826.0,66825.0,0.000824]
[1729669942490,0.1794,66826.0,66825.0,0.000824]
[1729669942714,0.34466776,66826.0,66825.0,0.000824]
[1729669942952,0.35858887,66826.0,66825.0,0.000824]
[1729669944761,0.35858887,66826.0,66825.0,0.00053394]
[1729669944970,0.35858221,66826.0,66825.0,0.00053394]
[1729669945175,0.33530822,66826.0,66825.0,0.00053394]
[1729669945400,0.19694477,66832.0,66831.0,0.00235083]
[1729669945401,0.02485006,66832.0,66831.0,0.00235083]
[1729669945621,0.001648,66832.0,66831.0,0.37461398]
[1729669945834,0.001648,66832.0,66831.0,0.41501175]
[1729669949522,0.001648,66832.0,66831.0,0.41701175]
[1729669949732,0.001648,66832.0,66831.0,0.41501175]
[1729669950172,0.001648,66832.0,66831.0,0.51701175]
[1729669950394,0.30092479,66847.0,66831.0,0.51701175]
[1729669950395,0.22412479,66847.0,66842.0,0.13203583]
[1729669951061,0.22412479,66847.0,66842.0,0.13403583]
[1729669951500,0.22412479,66847.0,66842.0,0.13203583]
[1729669952138,0.22412479,66847.0,66842.0,0.28299498]
[1729669953228,0.005648,66843.0,66842.0,0.28299498]
[1729669953489,0.005648,66843.0,66842.0,0.41752892]
[1729669953715,0.005648,66843.0,66842.0,0.41552892]
[1729669953936,0.005648,66843.0,66842.0,0.41752892]
[1729669954383,0.005648,66843.0,66842.0,0.41552892]
[1729669960376,0.001648,66851.0,66845.0,0.00235083]
[1729669960595,0.001648,66851.0,66848.0,0.17209471]
[1729669960838,0.001648,66851.0,66848.0,0.32105386]
[1729669961094,0.01389773,66850.0,66848.0,0.32105386]
[1729669961350,0.001648,66851.0,66848.0,0.32105386]
[1729669961568,0.01389678,66850.0,66848.0,0.32105386]
[1729669961807,0.001648,66851.0,66848.0,0.32105386]
[1729669961808,0.001648,66851.0,66849.0,0.04966017]
[1729669962069,0.13356676,66850.0,66845.0,0.05352099]
[1729669962307,0.001648,66851.0,66846.0,0.26863615]
[1729669962614,0.01389577,66850.0,66846.0,0.26863615]
[1729669962906,0.01389577,66849.0,66846.0,0.26863615]
[1729669963149,0.01389578,66849.0,66847.0,0.07459637]
[1729669963356,0.001648,66851.0,66847.0,0.07459637]
[1729669963589,0.0138951,66850.0,66847.0,0.07459637]
[1729669963819,0.0138951,66849.0,66847.0,0.07459637]
[1729669964062,0.001648,66851.0,66847.0,0.07459637]
[1729669964306,0.0138951,66850.0,66848.0,0.08205601]
[1729669964536,0.001648,66851.0,66848.0,0.08205601]
[1729669964789,0.01389448,66850.0,66848.0,0.08205601]
[1729669965036,0.001648,66851.0,66848.0,0.08205601]
[1729669965295,0.01389416,66850.0,66848.0,0.08205601]
[1729669965536,0.001648,66851.0,66848.0,0.08205601]
[1729669965791,0.11379337,66850.0,66846.0,0.14895915]
[1729669966053,0.221219,66850.0,66846.0,0.14895915]
[1729669966517,0.119674,66848.0,66844.0,0.17209471]
[1729669966764,0.34089,66850.0,66844.0,0.17209471]
[1729669966765,0.119673,66849.0,66844.0,0.17209471]
[1729669967742,0.101548,66850.0,66844.0,0.29177471]
[1729669967977,0.221219,66850.0,66845.0,0.05434965]
[1729669968224,0.01389222,66849.0,66845.0,0.05434965]
[1729669968483,0.221219,66850.0,66845.0,0.05434965]
[1729669969480,0.01389499,66849.0,66845.0,0.05434965]
[1729669969718,0.101548,66850.0,66845.0,0.05434965]
[1729669969955,0.01389569,66849.0,66842.0,0.124684]
[1729669970221,0.239345,66849.0,66842.0,0.27364315]
[1729669970464,0.119674,66848.0,66843.0,0.119682]
[1729669970733,0.119674,66848.0,66843.0,0.07828865]
[1729669971233,0.01390102,66847.0,66840.0,0.005]
[1729669971486,0.08920102,66846.0,66841.0,0.119686]
[1729669971732,0.01390102,66845.0,66841.0,0.119686]
[1729669971970,0.0753,66846.0,66841.0,0.21187197]
[1729669972210,0.01390793,66845.0,66841.0,0.09218597]
[1729669972448,0.0753,66846.0,66844.0,0.119681]
[1729669972709,0.01391586,66845.0,66844.0,0.119681]
[1729669972972,0.01391586,66845.0,66844.0,0.22134798]
[1729669974196,0.0753,66846.0,66844.0,0.22134798]
[1729669974197,0.0753,66846.0,66844.0,0.10166698]
[1729669974443,0.03622273,66845.0,66844.0,0.46070998]
[1729669974689,0.03622273,66845.0,66844.0,0.63280469]
[1729669975420,0.181748,66850.0,66845.0,0.119678]
[1729669975668,0.181748,66850.0,66846.0,0.18345717]
[1729669975908,0.05023906,66849.0,66846.0,0.18345717]
[1729669976151,0.05023906,66848.0,66846.0,0.18345717]
[1729669976407,0.05023906,66847.0,66846.0,0.18345717]
[1729669977340,0.05023906,66847.0,66846.0,0.50856715]
[1729669977342,0.001648,66850.0,66847.0,0.1]
[1729669977597,0.001648,66850.0,66849.0,0.40611754]
[1729669977838,0.001648,66850.0,66849.0,0.55507669]
[1729669979290,0.001648,66850.0,66849.0,0.55307669]
[1729669979515,0.001648,66850.0,66849.0,0.55507669]
[1729669979744,0.001648,66850.0,66849.0,0.65674367]
[1729669980554,0.001648,66850.0,66849.0,0.48264896]
[1729669980765,0.001648,66850.0,66849.0,0.65474367]
[1729669981019,0.01559999,66850.0,66849.0,0.65474367]
[1729669981252,0.01560011,66850.0,66849.0,0.65474367]
[1729669983961,0.00560011,66850.0,66849.0,0.65474367]
[1729669984672,0.001648,66851.0,66850.0,0.23202083]
[1729669984911,0.001648,66851.0,66850.0,0.43740932]
[1729669987058,0.001648,66851.0,66850.0,0.44300943]
[1729669990995,0.001648,66851.0,66850.0,0.12527011]
[1729669990996,0.09967148,66851.0,66850.0,0.12527011]
[1729669991457,0.09967148,66851.0,66850.0,0.00560011]
[1729669991688,0.077348,66851.0,66850.0,0.00560011]
[1729669991901,0.09967113,66851.0,66850.0,0.00560011]
[1729669992113,0.09967113,66851.0,66850.0,0.12527011]
[1729669992942,0.09967113,66851.0,66850.0,0.00560011]
[1729669993624,0.09967113,66851.0,66850.0,0.12527011]
[1729669993869,0.09802313,66851.0,66850.0,0.12527011]
[1729669995487,0.09802313,66851.0,66850.0,0.00560011]
[1729669995944,0.11197586,66851.0,66850.0,0.00560011]
[1729669997728,0.23164486,66851.0,66850.0,0.00560011]
[1729669997967,0.45866812,66851.0,66850.0,0.00560011]
[1729669998201,0.23454333,66851.0,66850.0,0.00560011]
[1729669998440,0.25779659,66851.0,66850.0,0.00560011]
[1729669998684,0.2205906,66851.0,66850.0,0.00560011]
[1729669998917,0.25778719,66851.0,66850.0,0.00560011]
[1729669999154,0.2345373,66851.0,66850.0,0.00560011]
[1729669999894,0.28853558,66851.0,66850.0,0.00560011]
[1729670000099,0.31085619,66851.0,66850.0,0.00560011]
[1729670000313,0.24389435,66851.0,66850.0,0.00560011]
[1729670000533,0.28852907,66851.0,66850.0,0.00560011]
[1729670000978,0.30149914,66851.0,66850.0,0.00560011]
[1729670001428,0.27916268,66851.0,66850.0,0.00560011]
[1729670001634,0.30147258,66851.0,66850.0,0.00560011]
[1729670001850,0.27916154,66851.0,66850.0,0.00642411]
[1729670002092,0.2361853,66851.0,66850.0,0.00642411]
[1729670002340,0.26685075,66851.0,66850.0,0.00642411]
[1729670002555,0.30309248,66851.0,66850.0,0.00642411]
[1729670002771,0.2361572,66851.0,66850.0,0.00642411]
[1729670003200,0.30309248,66851.0,66850.0,0.00642411]
[1729670003463,0.28076625,66851.0,66850.0,0.00642411]
[1729670005243,0.3314572,66851.0,66850.0,0.00642411]
[1729670005689,0.73238442,66851.0,66850.0,0.00642411]
[1729670005926,0.86576119,66851.0,66850.0,0.00642411]
[1729670006131,0.91133186,66851.0,66850.0,0.00642411]
[1729670006570,0.49301788,66848.0,66847.0,0.05023906]
[1729670006788,0.687797,66848.0,66847.0,0.05023906]
[1729670007255,0.73236742,66848.0,66847.0,0.05023906]
[1729670007493,0.55527271,66848.0,66847.0,0.05023906]
[1729670007965,0.51070229,66848.0,66847.0,0.05023906]
[1729670009515,0.46513162,66848.0,66847.0,0.05023906]
[1729670009729,0.51066336,66848.0,66847.0,0.05023906]
[1729670010165,0.50130529,66848.0,66847.0,0.05023906]
[1729670010579,0.52449223,66848.0,66847.0,0.05023906]
[1729670010999,0.50130529,66848.0,66847.0,0.05023906]
[1729670012800,0.50130529,66848.0,66843.0,0.000824]
[1729670012801,0.1199303,66844.0,66843.0,0.000824]
[1729670013014,0.15610397,66844.0,66843.0,0.000824]
[1729670013226,0.1199303,66844.0,66843.0,0.000824]
[1729670013457,0.15610181,66844.0,66843.0,0.000824]
[1729670014194,0.15875098,66844.0,66843.0,0.000824]
[1729670015158,0.03617151,66844.0,66843.0,0.000824]
[1729670016817,0.03618761,66844.0,66843.0,0.000824]
[1729670019041,0.03618761,66844.0,66843.0,0.120507]
[1729670019309,0.03618761,66844.0,66843.0,0.000824]
[1729670019577,0.03618761,66844.0,66843.0,0.120507]
[1729670020054,0.03618761,66844.0,66843.0,0.000824]
[1729670021022,0.03618761,66844.0,66843.0,0.120507]
[1729670021265,0.01391831,66844.0,66843.0,0.17291871]
[1729670021513,0.03620774,66844.0,66843.0,0.25888744]
[1729670021753,0.03620774,66844.0,66843.0,0.08679273]
[1729670021979,0.03620774,66844.0,66843.0,0.000824]
[1729670023199,0.03620774,66844.0,66843.0,0.120507]
[1729670023664,0.03620774,66844.0,66843.0,0.000824]
[1729670023896,0.03620774,66844.0,66843.0,0.120507]
[1729670024194,0.22412479,66849.0,66843.0,0.120507]
[1729670024428,0.03622945,66844.0,66843.0,0.000824]
[1729670024658,0.0139344,66844.0,66843.0,0.000824]
[1729670024903,0.03622945,66844.0,66843.0,0.000824]
[1729670025669,0.15855962,66844.0,66843.0,0.000824]
[1729670025954,0.24731617,66844.0,66843.0,0.000824]
[1729670026197,0.378772,66844.0,66843.0,0.000824]
[1729670026447,0.55086671,66844.0,66843.0,0.000824]
[1729670026724,0.41966018,66844.0,66843.0,0.000824]
[1729670027340,0.51776018,66844.0,66843.0,0.000824]
[1729670027778,0.5177802,66844.0,66843.0,0.000824]
[1729670029475,0.34568549,66844.0,66843.0,0.000824]
[1729670029899,0.66673935,66844.0,66843.0,0.000824]
[1729670031262,0.62113333,66844.0,66843.0,0.000824]
[1729670031483,0.66673034,66844.0,66843.0,0.000824]
[1729670032348,0.65737153,66844.0,66843.0,0.000824]
[1729670033856,0.48527682,66844.0,66843.0,0.000824]
[1729670035376,0.49463492,66844.0,66843.0,0.000824]
[1729670035839,0.49462913,66844.0,66843.0,0.000824]
[1729670037666,0.50856479,66844.0,66843.0,0.000824]
[1729670038373,0.46297428,66844.0,66843.0,0.000824]
[1729670038602,0.50856686,66844.0,66843.0,0.000824]
[1729670039276,0.53086393,66844.0,66843.0,0.000824]
[1729670039718,0.67982308,66844.0,66843.0,0.000824]
[1729670040398,0.72437984,66844.0,66843.0,0.000824]
[1729670040649,0.57542069,66844.0,66843.0,0.000824]
[1729670041019,0.57544258,66844.0,66843.0,0.000824]
[1729670041578,0.53086393,66844.0,66843.0,0.000824]
[1729670043239,0.59773191,66844.0,66843.0,0.000824]
[1729670048413,0.59772417,66844.0,66843.0,0.000824]
[1729670049062,0.74668332,66844.0,66843.0,0.000824]
[1729670049563,0.84445823,66844.0,66843.0,0.000824]
[1729670049808,0.98390487,66844.0,66843.0,0.000824]
[1729670050040,0.98390487,66844.0,66831.0,0.000824]
[1729670050041,0.20240147,66832.0,66831.0,0.000824]
[1729670050253,0.26192197,66832.0,66831.0,0.000824]
[1729670051557,0.21633713,66832.0,66831.0,0.000824]
[1729670051767,0.26192395,66832.0,66831.0,0.000824]
[1729670055026,0.20240147,66832.0,66831.0,0.000824]
[1729670055245,0.26194345,66832.0,66831.0,0.000824]
[1729670055469,0.05979128,66832.0,66831.0,0.000824]
[1729670055689,0.05954198,66832.0,66831.0,0.079624]
[1729670055972,0.08278391,66832.0,66831.0,0.079624]
[1729670056187,0.05954198,66832.0,66831.0,0.079624]
[1729670056406,0.05954198,66832.0,66831.0,0.000824]
[1729670056872,0.20538538,66832.0,66831.0,0.000824]
[1729670057276,0.18214345,66832.0,66831.0,0.000824]
[1729670057496,0.20538538,66832.0,66831.0,0.000824]
[1729670059360,0.18214345,66832.0,66831.0,0.000824]
[1729670060220,0.06244045,66832.0,66831.0,0.000824]
[1729670060439,0.18214345,66832.0,66831.0,0.000824]
[1729670062221,0.18216334,66832.0,66831.0,0.000824]
[1729670063999,0.18216445,66832.0,66831.0,0.000824]
[1729670065380,0.20540715,66832.0,66831.0,0.000824]
[1729670065609,0.18216445,66832.0,66831.0,0.000824]
[1729670065804,0.20541061,66832.0,66831.0,0.000824]
[1729670066008,0.18216791,66832.0,66831.0,0.000824]
[1729670066235,0.20541061,66832.0,66831.0,0.000824]
[1729670066655,0.18216791,66832.0,66831.0,0.000824]
[1729670069286,0.16823371,66832.0,66831.0,0.000824]
[1729670069511,0.18218623,66832.0,66831.0,0.000824]
[1729670069738,0.18219124,66832.0,66831.0,0.000824]
[1729670072923,0.12260147,66832.0,66831.0,0.000824]
[1729670073133,0.17283896,66832.0,66831.0,0.000824]
[1729670073346,0.18219792,66832.0,66831.0,0.000824]
[1729670074250,0.12260147,66832.0,66831.0,0.000824]
[1729670074468,0.15987111,66832.0,66831.0,0.000824]
[1729670074704,0.17930119,66832.0,66831.0,0.000824]
[1729670074993,0.05959819,66832.0,66831.0,0.000824]
[1729670076063,0.05959819,66832.0,66831.0,0.120528]
[1729670076292,0.05959819,66832.0,66831.0,0.295428]
[1729670076567,0.04464555,66841.0,66839.0,0.119689]
[1729670076747,0.001648,66843.0,66839.0,0.11969]
[1729670076748,0.22412479,66840.0,66839.0,0.11969]
[1729670076992,0.02791573,66840.0,66839.0,0.40467853]
[1729670077202,0.02791573,66840.0,66839.0,0.46908478]
[1729670077203,0.05024832,66840.0,66839.0,0.46908478]
[1729670077880,0.05960572,66840.0,66839.0,0.46908478]
[1729670078340,0.04564785,66840.0,66839.0,0.46908478]
[1729670078565,0.04564783,66840.0,66839.0,0.46908478]
[1729670078789,0.03629045,66840.0,66839.0,0.46908478]
[1729670079946,0.03629045,66840.0,66839.0,0.34939478]
[1729670080199,0.03629045,66840.0,66839.0,0.46908478]
[1729670080463,0.01395786,66840.0,66839.0,0.46908478]
[1729670082156,0.001648,66843.0,66841.0,0.119686]
[1729670082397,0.01393575,66842.0,66841.0,0.21447048]
[1729670083278,0.01393575,66842.0,66841.0,0.09478448]
[1729670087136,0.01393575,66842.0,66841.0,0.21447148]
[1729670087849,0.01393575,66842.0,66841.0,0.36642256]
[1729670088096,0.01393575,66842.0,66841.0,0.24374363]
[1729670088097,0.01392614,66842.0,66841.0,0.24374363]
[1729670088372,0.001648,66843.0,66841.0,0.26864615]
[1729670088592,0.01392426,66842.0,66840.0,0.119687]
[1729670088841,0.01392426,66841.0,66840.0,0.119687]
[1729670090036,0.01392426,66841.0,66840.0,0.26864615]
[1729670090535,0.01392426,66841.0,66835.0,0.244394]
[1729670090764,0.0139235,66840.0,66838.0,0.119692]
[1729670091002,0.001648,66843.0,66838.0,0.119692]
[1729670091233,0.01392348,66842.0,66838.0,0.119692]
[1729670091492,0.001648,66843.0,66838.0,0.119692]
[1729670091493,0.01392348,66841.0,66838.0,0.119692]
[1729670091742,0.01392348,66840.0,66838.0,0.119691]
[1729670091978,0.001648,66843.0,66838.0,0.119691]
[1729670092198,0.0139234,66842.0,66838.0,0.119691]
[1729670092429,0.0139234,66841.0,66838.0,0.119691]
[1729670092671,0.0139234,66840.0,66838.0,0.119691]
[1729670092909,0.001648,66843.0,66838.0,0.119691]
[1729670093143,0.01392351,66842.0,66838.0,0.119691]
[1729670093383,0.01392351,66841.0,66838.0,0.119691]
[1729670093612,0.01392351,66840.0,66838.0,0.119691]
[1729670093846,0.001648,66843.0,66838.0,0.119691]
[1729670094094,0.01392386,66842.0,66838.0,0.119691]
[1729670094383,0.001648,66843.0,66841.0,0.119687]
[1729670094627,0.01392408,66841.0,66840.0,0.11008853]
[1729670094828,0.01392408,66841.0,66840.0,0.22977653]
[1729670096017,0.01392408,66841.0,66840.0,0.37873568]
[1729670096243,0.01392408,66841.0,66840.0,0.48657584]
[1729670098059,0.001648,66843.0,66842.0,0.119685]
[1729670098280,0.001648,66843.0,66842.0,0.26864415]
[1729670098505,0.0155814,66843.0,66842.0,0.26864415]
[1729670098951,0.0155814,66843.0,66842.0,0.37873268]
[1729670100490,0.0155814,66843.0,66842.0,0.63849953]
[1729670100740,0.0155814,66843.0,66842.0,0.64085036]
[1729670100741,0.001648,66843.0,66842.0,0.64085036]
[1729670101618,0.01558767,66843.0,66842.0,0.64085036]
[1729670102082,0.01558767,66843.0,66842.0,0.63849953]
[1729670102304,0.01558767,66843.0,66842.0,0.55969953]
[1729670102771,0.01559057,66843.0,66842.0,0.55969953]
[1729670102992,0.01559057,66843.0,66842.0,0.47363268]
[1729670104076,0.001648,66843.0,66842.0,0.47363268]
[1729670104291,0.01559394,66843.0,66842.0,0.47363268]
[1729670105619,0.01559394,66843.0,66842.0,0.47941803]
[1729670105884,0.01559394,66843.0,66842.0,0.58319342]
[1729670106312,0.03793274,66843.0,66842.0,0.58319342]
[1729670106738,0.01559394,66843.0,66842.0,0.48829342]
[1729670107452,0.01541388,66843.0,66842.0,0.48829342]
[1729670107664,0.01543441,66843.0,66842.0,0.48829342]
[1729670109130,0.0377935,66843.0,66842.0,0.48829342]
[1729670111036,0.01543441,66843.0,66842.0,0.48829342]
[1729670111464,0.01543441,66843.0,66842.0,0.48911742]
[1729670114011,0.03779657,66843.0,66842.0,0.48911742]
[1729670114459,0.01543441,66843.0,66842.0,0.48911742]
[1729670114872,0.03780981,66843.0,66842.0,0.48911742]
[1729670115122,0.01544559,66843.0,66842.0,0.48911742]
[1729670118312,0.01544432,66843.0,66842.0,0.48911742]
[1729670121246,0.01544432,66843.0,66842.0,0.60155678]
[1729670121470,0.01544432,66843.0,66842.0,0.69455678]
[1729670121693,0.00146794,66843.0,66842.0,0.80455678]
[1729670121909,0.00146794,66843.0,66842.0,0.69446825]
[1729670122157,0.00146794,66843.0,66842.0,0.80455678]
[1729670122588,0.00146794,66843.0,66842.0,0.69446825]
[1729670123451,0.00146794,66843.0,66842.0,0.69246825]
[1729670123665,0.01544749,66843.0,66842.0,0.48324354]
[1729670123876,0.01544749,66843.0,66842.0,0.48559437]
[1729670124944,0.03781573,66843.0,66842.0,0.48559437]
[1729670125605,0.00146794,66843.0,66842.0,0.48559437]
[1729670125821,0.03782712,66843.0,66842.0,0.48559437]
[1729670126720,0.03782712,66843.0,66842.0,0.47824354]
[1729670129332,0.03785448,66843.0,66842.0,0.47824354]
[1729670133019,0.03787559,66843.0,66842.0,0.47824354]
[1729670133245,0.0602803,66843.0,66842.0,0.47824354]
[1729670133461,0.03787559,66843.0,66842.0,0.47824354]
[1729670134105,0.03787559,66843.0,66842.0,0.48059437]
[1729670134967,0.03787559,66843.0,66842.0,0.48559437]
[1729670135822,0.03787559,66843.0,66842.0,0.5956829]
[1729670136676,0.03787745,66843.0,66842.0,0.5956829]
[1729670138588,0.0154716,66843.0,66842.0,0.5956829]
[1729670141643,0.0154716,66843.0,66842.0,0.68729186]
[1729670142292,0.0154716,66843.0,66842.0,0.64242676]
[1729670144131,0.01546928,66843.0,66842.0,0.63242676]
[1729670144347,0.01546928,66843.0,66842.0,0.64242676]
[1729670145472,0.01546928,66843.0,66842.0,0.64055398]
[1729670145942,0.01546928,66843.0,66842.0,0.53046439]
[1729670146238,0.01546928,66843.0,66842.0,0.48559437]
[1729670146660,0.01546928,66843.0,66842.0,0.5956829]
[1729670148398,0.01546928,66843.0,66842.0,0.68729392]
[1729670149240,0.01546928,66843.0,66842.0,0.5956829]
[1729670149672,0.01546928,66843.0,66842.0,0.68729514]
[1729670150112,0.01546928,66843.0,66842.0,0.68729509]
[1729670150541,0.01546928,66843.0,66842.0,0.68929509]
[1729670150759,0.01546928,66843.0,66842.0,0.68929513]
[1729670150967,0.01546928,66843.0,66842.0,0.64255296]
[1729670151181,0.01546928,66843.0,66842.0,0.68929518]
[1729670151608,0.01546928,66843.0,66842.0,0.64055296]
[1729670151821,0.01546928,66843.0,66842.0,0.5956829]
[1729670152959,0.01546928,66843.0,66842.0,0.6872958]
[1729670156439,0.00146794,66843.0,66842.0,0.6872958]
[1729670156660,0.01546934,66843.0,66842.0,0.6872958]
[1729670157300,0.01546934,66843.0,66842.0,0.6872962]
[1729670157941,0.01546934,66843.0,66842.0,0.64242574]
[1729670158420,0.01546934,66843.0,66842.0,0.64442574]
[1729670158812,0.01546934,66843.0,66842.0,0.68929767]
[1729670158971,0.01546934,66843.0,66842.0,0.64055483]
[1729670160418,0.01546934,66843.0,66842.0,0.64055599]
[1729670161016,0.01546934,66843.0,66842.0,0.64242522]
[1729670161223,0.01546934,66843.0,66842.0,0.68729793]
[1729670161484,0.01546934,66843.0,66842.0,0.64242522]
[1729670162044,0.01546934,66843.0,66842.0,0.37946815]
[1729670162264,0.03787326,66843.0,66842.0,0.37446815]
[1729670164639,0.03787326,66843.0,66842.0,0.37646815]
[1729670164841,0.03787326,66843.0,66842.0,0.37446815]
[1729670165353,0.21197326,66843.0,66842.0,0.14978315]